bitfinex/quotes_ETHUSD_20220215
["timestamp","ask_amount","ask_price","bid_price","bid_amount"]
[1644886369158,0.8573789,2916.4,2916.1,1.18836957]
[1644886369359,0.00869277,2916.7,2916.1,1.18836957]
[1644886369560,2.87977218,2916.9,2916.2,0.56882945]
[1644886369561,0.86401648,2916.6,2916.2,0.56882945]
[1644886369759,7.2297,2917.2,2916.2,1.42608945]
[1644886369760,0.00485018,2917.1,2916.2,1.42608945]
[1644886369961,0.00871525,2916.7,2916.3,0.56882945]
[1644886370160,0.86434464,2916.6,2916.3,0.56882945]
[1644886370361,0.86434464,2916.6,2916.1,1.18839206]
[1644886370563,0.86434464,2916.6,2916.2,0.56890289]
[1644886371614,0.86434464,2916.6,2916.3,0.85731]
[1644886373016,1.72168394,2916.6,2916.3,0.85731]
[1644886373217,1.72168394,2916.6,2916.1,1.18868568]
[1644886373218,0.86434464,2916.5,2916.2,0.85738]
[1644886373417,0.86434464,2916.5,2916.1,0.32227474]
[1644886373616,0.86434464,2916.5,2916.1,0.33126031]
[1644886374518,0.86434464,2916.5,2916.1,0.32227474]
[1644886374519,1.72175464,2916.5,2916.1,0.32227474]
[1644886374720,0.86434464,2916.4,2916.1,1.18867011]
[1644886375558,0.86434464,2916.4,2916.1,1.17968474]
[1644886376058,0.86434464,2916.4,2916.1,1.18867004]
[1644886376458,0.8574167,2916.4,2916.2,0.57268523]
[1644886376656,0.01383335,2916.7,2916.3,0.57266032]
[1644886376856,0.86135409,2916.6,2916.1,1.17968474]
[1644886377058,0.00898494,2916.7,2916.2,0.57276297]
[1644886377256,0.86130689,2916.6,2916.2,1.43006297]
[1644886377458,3.5,2916.5,2916.1,0.81953229]
[1644886377663,3.5,2916.5,2916.1,0.00898707]
[1644886377664,0.86130689,2916.4,2916.1,0.00898707]
[1644886377860,0.64092634,2916.2,2916.1,0.00898707]
[1644886378157,1.65130689,2916.2,2915.6,0.0012071]
[1644886378357,1.67432572,2916.1,2915.7,0.02019972]
[1644886378557,0.85766,2915.9,2915.7,0.02019972]
[1644886378759,0.86130689,2915.8,2915.7,0.02019972]
[1644886379205,0.86130689,2915.8,2915.6,1.02248067]
[1644886379405,0.86130689,2915.8,2915.6,1.02753071]
[1644886380004,2.2051723,2916.1,2915.6,1.02753071]
[1644886380005,0.86130689,2915.7,2915.6,1.02753071]
[1644886380404,1.3475923,2916.1,2915.6,1.02753071]
[1644886380405,0.86130689,2916.0,2915.6,1.02248067]
[1644886380604,0.86130689,2915.9,2915.6,0.0012071]
[1644886380812,0.86130689,2915.8,2915.6,0.0012071]
[1644886381709,0.83796124,2915.7,2915.6,0.0012071]
[1644886381906,1.69926813,2915.7,2915.6,0.01046664]
[1644886382306,2.55700813,2915.7,2915.6,0.01046664]
[1644886382758,2.55700813,2915.7,2915.6,0.0012071]
[1644886385761,6.36031682,2915.7,2915.6,0.0012071]
[1644886385961,6.85031682,2915.7,2915.6,0.0012071]
[1644886388211,3.34700813,2915.7,2915.6,0.0012071]
[1644886388910,3.04700813,2915.7,2915.6,0.0012071]
[1644886389711,6.61674497,2915.7,2915.6,0.0012071]
[1644886389912,3.34700813,2915.7,2915.6,0.0012071]
[1644886392359,6.18656097,2915.7,2915.6,0.0012071]
[1644886393158,2.85700813,2915.7,2915.6,0.0012071]
[1644886393758,6.13246061,2915.7,2915.6,0.0012071]
[1644886394008,2.85700813,2915.7,2915.6,0.0012071]
[1644886396210,2.01904689,2915.7,2915.6,0.0012071]
[1644886398356,5.04172516,2915.7,2915.6,0.0012071]
[1644886398659,1.71904689,2915.7,2915.6,0.0012071]
[1644886398855,0.00018403,2915.6,2915.5,0.00899364]
[1644886399056,1.71921282,2915.6,2915.5,0.00899364]
[1644886399658,1.71921282,2915.6,2915.4,0.61027641]
[1644886399855,0.85790593,2915.6,2915.4,0.61927022]
[1644886400657,0.85789403,2915.6,2915.4,0.61927022]
[1644886400859,0.85789403,2915.6,2915.4,0.61027641]
[1644886400860,0.00018403,2915.6,2915.4,0.61027641]
[1644886401057,0.00018403,2915.6,2915.4,1.00957641]
[1644886401262,0.00018403,2915.6,2915.4,1.0185703]
[1644886402114,0.00018403,2915.6,2915.4,1.46781641]
[1644886402315,0.00018403,2915.6,2915.5,0.57536108]
[1644886402515,0.00018403,2915.6,2915.4,1.4768103]
[1644886403114,0.00018403,2915.6,2915.5,3.26126126]
[1644886403614,0.00018403,2915.6,2915.5,3.84247864]
[1644886408459,0.00018403,2915.6,2915.5,0.58121738]
[1644886409919,0.00018403,2915.6,2915.5,3.77622627]
[1644886421965,0.00018403,2915.6,2915.5,4.63364627]
[1644886423565,0.00018403,2915.6,2915.5,3.77622627]
[1644886423764,0.00018403,2915.6,2915.5,4.63372257]
[1644886424407,0.00018403,2915.6,2915.5,0.58121738]
[1644886425609,0.85782403,2915.6,2915.5,0.58121738]
[1644886426408,1.70966801,2915.6,2915.5,0.58121738]
[1644886427411,1.70966801,2915.6,2915.1,2.6775]
[1644886427412,2.56744521,2915.6,2915.4,0.00900602]
[1644886427669,1.70957398,2915.5,2915.4,0.00763226]
[1644886428074,1.70957398,2915.5,2915.4,0.59653043]
[1644886428269,1.70957398,2915.5,2915.4,1.64335508]
[1644886428472,1.70957398,2915.5,2915.4,1.63572282]
[1644886429068,1.70957398,2915.5,2915.4,0.58889817]
[1644886429471,1.70957398,2915.5,2915.2,0.58889817]
[1644886429670,0.85184398,2915.4,2915.2,0.58889817]
[1644886429871,0.85773,2915.5,2915.3,0.00900725]
[1644886430069,0.84622138,2915.4,2915.3,0.00900725]
[1644886430272,0.84622138,2915.4,2915.3,1.75126087]
[1644886430570,0.84622138,2915.4,2915.3,2.60895087]
[1644886430769,0.84622138,2915.4,2915.3,2.59994362]
[1644886431518,0.84622138,2915.4,2915.3,2.01100289]
[1644886432114,0.84622138,2915.4,2915.3,2.60367454]
[1644886432313,0.84622138,2915.4,2915.3,2.01100289]
[1644886432515,0.84622138,2915.4,2915.3,2.60365644]
[1644886433315,0.84622138,2915.4,2915.3,2.01100289]
[1644886433518,0.84622138,2915.4,2915.3,2.60372356]
[1644886433714,0.84622138,2915.4,2915.3,2.01100289]
[1644886433917,0.84622138,2915.4,2915.3,2.60372159]
[1644886434115,0.84622138,2915.4,2915.3,2.01100289]
[1644886434315,0.84622138,2915.4,2915.3,2.60372138]
[1644886434516,0.84622138,2915.4,2915.3,2.01100289]
[1644886434717,0.84622138,2915.4,2915.3,2.6037182]
[1644886434918,0.84622138,2915.4,2915.3,2.01100289]
[1644886435162,0.84622138,2915.4,2915.3,2.60371818]
[1644886436359,0.84622138,2915.5,2915.3,2.60371818]
[1644886436561,0.84622138,2915.5,2915.4,0.5927924]
[1644886436861,0.84622138,2915.5,2915.4,0.59278385]
[1644886437060,0.84622138,2915.5,2915.3,1.16231924]
[1644886437259,0.00018403,2915.6,2915.3,1.16231924]
[1644886437260,0.00018403,2915.6,2915.4,1.45047266]
[1644886437460,0.85783403,2915.6,2915.3,1.32563161]
[1644886437660,0.84278655,2915.5,2915.4,0.62178128]
[1644886438260,0.84278655,2915.5,2915.4,1.47945128]
[1644886438659,0.84278655,2915.5,2915.4,0.62178128]
[1644886438913,1.70046655,2915.5,2915.4,0.62178128]
[1644886440510,1.70046655,2915.5,2915.2,0.00423906]
[1644886440713,0.84278655,2915.4,2915.3,0.62778166]
[1644886440911,1.70056655,2915.4,2915.3,0.62778166]
[1644886441611,1.70056655,2915.4,2915.3,0.61877541]
[1644886442412,1.47277914,2915.4,2915.3,0.61877541]
[1644886442670,0.00018403,2915.6,2915.3,0.61877541]
[1644886442873,0.00018403,2915.6,2915.3,0.91877541]
[1644886443071,0.00018403,2915.6,2915.3,0.3]
[1644886443270,0.00018403,2915.6,2915.4,0.85749]
[1644886443669,0.00018403,2915.6,2915.4,1.71495]
[1644886443873,0.00018403,2915.6,2915.5,0.8574635]
[1644886444470,0.00018403,2915.6,2915.5,1.7149335]
[1644886444873,0.00018403,2915.6,2915.5,5.26808344]
[1644886445870,0.00018403,2915.6,2915.5,4.41061994]
[1644886446716,0.00018403,2915.6,2915.5,6.06035033]
[1644886446916,0.00018403,2915.6,2915.5,6.20061994]
[1644886447212,0.00018403,2915.6,2915.5,6.85279151]
[1644886447813,0.00018403,2915.6,2915.5,6.55279151]
[1644886448012,0.00018403,2915.6,2915.5,5.55279151]
[1644886448212,0.00018403,2915.6,2915.5,4.69532151]
[1644886448414,0.00018403,2915.6,2915.5,4.04314994]
[1644886449014,1.1613,2916.6,2915.5,4.04314994]
[1644886449015,0.67533667,2916.6,2916.0,1.09395852]
[1644886449218,0.8574553,2916.2,2916.0,1.09395852]
[1644886450013,0.81103737,2916.2,2916.0,1.09395852]
[1644886450264,0.8574182,2916.3,2916.0,1.09395852]
[1644886450464,0.8574182,2916.3,2916.0,1.95137852]
[1644886451263,0.8574182,2916.3,2916.1,3.26610032]
[1644886451464,1.71492,2916.7,2916.1,3.26610032]
[1644886451465,0.00900326,2916.6,2916.3,0.8573]
[1644886451770,0.00900326,2916.6,2916.3,4.10737846]
[1644886451963,0.00900326,2916.6,2916.3,0.8573]
[1644886452170,0.00900326,2916.6,2916.1,3.37491932]
[1644886452564,0.8574,2916.6,2916.2,0.8574]
[1644886452763,0.86640353,2916.6,2916.3,3.15273521]
[1644886452965,0.86640353,2916.6,2916.1,3.34578544]
[1644886453565,0.86640353,2916.6,2916.2,0.8574]
[1644886453764,0.85735,2916.8,2916.3,3.16915422]
[1644886454010,0.00900353,2916.6,2916.3,3.16915422]
[1644886454211,0.00900353,2916.6,2916.3,3.17452468]
[1644886454813,0.00900353,2916.6,2916.3,5.74634468]
[1644886455013,0.64171883,2917.4,2916.3,4.03184468]
[1644886455216,0.64171883,2917.4,2916.5,1.0832184]
[1644886455913,0.64171883,2917.4,2916.6,3.20958473]
[1644886456119,2.35612043,2917.4,2916.6,4.06682473]
[1644886456412,2.35612043,2917.4,2916.7,0.85715]
[1644886456413,0.00900269,2917.1,2916.7,0.85715]
[1644886456613,0.00900269,2917.1,2916.6,3.20958473]
[1644886457015,0.00900269,2917.1,2916.7,1.07958185]
[1644886457416,0.64171883,2917.4,2916.6,2.72583238]
[1644886457666,2.35604993,2917.5,2916.6,2.72583238]
[1644886457967,0.64171883,2917.5,2916.8,0.8572]
[1644886458366,0.85719,2917.4,2916.8,0.8572]
[1644886458568,0.85719,2917.4,2916.6,3.24019922]
[1644886458770,0.8593175,2917.2,2916.5,2.1904074]
[1644886458969,2.5739675,2917.2,2916.5,2.1904074]
[1644886459574,0.85733,2917.0,2916.5,1.0832184]
[1644886459770,0.8573528,2916.9,2916.5,1.0832184]
[1644886460568,0.85736,2916.8,2916.5,1.0832184]
[1644886461170,0.00900982,2916.8,2916.5,2.17585126]
[1644886461613,0.86635982,2916.8,2916.5,2.17585126]
[1644886461916,0.00900982,2916.8,2916.5,3.03316126]
[1644886462117,0.8573278,2916.9,2916.5,3.03316126]
[1644886462513,0.77866693,2916.8,2916.5,1.94994286]
[1644886462914,0.77866693,2916.9,2916.5,1.94994286]
[1644886463515,0.00903864,2916.8,2916.5,1.94994286]
[1644886463716,0.77866693,2916.7,2916.5,1.94994286]
[1644886464817,0.00903882,2916.7,2916.5,1.94994286]
[1644886465765,0.00482593,2916.9,2916.5,1.94994286]
[1644886466066,0.00903882,2916.7,2916.5,1.94994286]
[1644886466266,0.01386475,2916.7,2916.5,1.94994286]
[1644886466467,0.00903882,2916.7,2916.5,5.11612473]
[1644886466666,0.00903882,2916.7,2916.6,3.17660692]
[1644886466866,0.00482593,2916.9,2916.5,1.94994286]
[1644886467066,0.00482593,2916.9,2916.6,0.85722]
[1644886467270,0.00916626,2916.8,2916.6,1.71443]
[1644886467666,0.00916626,2916.8,2916.6,0.85721]
[1644886468266,3.4291345,2917.3,2916.6,0.85721]
[1644886468466,0.00916617,2916.8,2916.6,0.85721]
[1644886469113,0.00916617,2916.8,2916.5,1.09263286]
[1644886469312,0.8573093,2916.9,2916.5,1.94996286]
[1644886469517,0.00482593,2916.8,2916.5,1.94996286]
[1644886469714,0.0139921,2916.8,2916.5,1.94996286]
[1644886470215,0.00916617,2916.8,2916.5,1.94996286]
[1644886470615,0.00482593,2916.9,2916.5,1.94996286]
[1644886470815,0.00903013,2916.8,2916.5,1.94996286]
[1644886471916,0.00482593,2917.0,2916.5,1.94996286]
[1644886472116,0.00903013,2916.8,2916.5,1.94996286]
[1644886472316,0.01385606,2916.8,2916.4,1.7145]
[1644886472519,0.00903013,2916.8,2916.4,1.7145]
[1644886472764,0.86635013,2916.8,2916.4,1.7145]
[1644886472970,0.78303012,2916.7,2916.4,1.7145]
[1644886473163,0.01385615,2916.7,2916.4,1.7145]
[1644886473564,0.01385615,2916.7,2916.4,0.90318191]
[1644886473565,0.87123615,2916.7,2916.4,0.90318191]
[1644886473763,0.00903022,2916.7,2916.4,0.90318191]
[1644886473965,0.01385615,2916.7,2916.4,0.90318191]
[1644886474266,0.00482593,2917.1,2916.4,0.90318191]
[1644886474466,0.0090395,2916.7,2916.5,0.65373661]
[1644886474666,0.0090395,2916.7,2916.6,0.85726]
[1644886475365,0.857289,2916.8,2916.6,0.85726]
[1644886475565,0.77848756,2916.7,2916.4,1.76052191]
[1644886475966,0.77848756,2916.7,2916.2,1.1744]
[1644886476167,0.00482593,2916.6,2915.9,2.3913]
[1644886476423,2.5726002,2916.5,2915.9,2.3913]
[1644886476623,3.35108776,2916.5,2916.0,0.65414814]
[1644886476821,1.63601756,2916.4,2916.0,1.51160814]
[1644886477023,1.63601756,2916.4,2916.0,0.65414814]
[1644886477219,1.63601756,2916.4,2915.7,1.1481]
[1644886477220,0.77848756,2916.3,2915.7,1.1481]
[1644886477420,0.8574789,2916.2,2916.0,0.92704637]
[1644886478122,0.8574789,2916.2,2916.1,0.65447029]
[1644886481067,0.8574789,2916.2,2916.1,0.6534002]
[1644886481068,1.7149689,2916.2,2916.1,0.6534002]
[1644886481470,0.8574789,2916.2,2916.1,0.6534002]
[1644886481868,0.0748516,2916.2,2916.1,0.6534002]
[1644886482073,0.8573599,2916.3,2916.1,3.83598786]
[1644886482271,0.00903877,2916.6,2916.2,4.0932912]
[1644886482671,0.00482593,2916.8,2916.6,1.07365822]
[1644886483073,0.85734,2916.8,2916.6,1.07365822]
[1644886483274,1.7146091,2916.8,2916.6,1.07365822]
[1644886483473,0.86209503,2916.8,2916.6,1.07365822]
[1644886483916,0.86209503,2916.8,2916.3,0.85739]
[1644886484113,0.85741,2916.7,2916.3,0.85739]
[1644886484412,0.00482593,2916.6,2916.3,0.85739]
[1644886485013,0.00482593,2916.6,2916.3,1.14273153]
[1644886485213,0.01386502,2916.6,2916.3,1.14273153]
[1644886485421,1.72866352,2916.6,2916.3,1.14273153]
[1644886485613,0.87126352,2916.6,2916.3,1.14273153]
[1644886486213,0.86222443,2916.6,2916.3,1.14273153]
[1644886486415,0.87126352,2916.6,2916.3,1.14273153]
[1644886486817,1.7148591,2916.5,2916.3,1.14273153]
[1644886487116,0.8574391,2916.5,2916.3,1.14273153]
[1644886487977,0.85744,2916.4,2916.3,1.14273153]
[1644886488767,0.8574391,2916.5,2916.3,1.14273153]
[1644886492716,1.7148491,2916.5,2916.3,1.14273153]
[1644886493315,1.7148491,2916.5,2916.0,4.2131517]
[1644886493518,1.7148725,2916.4,2916.0,0.85742]
[1644886494116,0.8574225,2916.4,2916.0,1.71485]
[1644886494316,0.8574225,2916.4,2916.0,0.85742]
[1644886494818,0.8574225,2916.4,2916.3,1.04419869]
[1644886500317,0.8573558,2916.5,2916.3,1.04419869]
[1644886500517,1.7147158,2916.5,2916.3,1.04419869]
[1644886500719,0.8573558,2916.5,2916.3,1.04419869]
[1644886500923,0.79490771,2916.4,2916.3,1.04419869]
[1644886501121,0.79490771,2916.4,2916.3,1.68763983]
[1644886501919,0.79491322,2916.4,2916.3,1.68763983]
[1644886502768,0.3,2916.4,2916.3,1.68763983]
[1644886502970,1.09535212,2916.4,2916.3,1.68763983]
[1644886503169,0.3,2916.4,2916.3,1.68763983]
[1644886503371,1.09539813,2916.4,2916.3,1.68763983]
[1644886503574,1.09539914,2916.4,2916.3,1.68763983]
[1644886503870,0.3,2916.4,2916.3,1.68763983]
[1644886504171,0.3,2916.4,2915.8,2.2308]
[1644886504172,1.0953333,2916.4,2915.8,2.88297157]
[1644886504372,2.5101916,2916.3,2915.9,0.64367422]
[1644886504572,0.7953333,2916.2,2915.9,0.64367422]
[1644886504972,0.7953333,2916.2,2915.8,0.65217157]
[1644886504973,0.7953333,2916.2,2916.0,0.64367422]
[1644886505172,0.7953333,2916.2,2916.1,0.64367422]
[1644886505370,0.7953333,2916.2,2915.8,0.64367422]
[1644886505573,1.6527616,2916.2,2915.8,0.64367422]
[1644886505773,1.6527616,2916.2,2915.7,0.64367422]
[1644886505774,0.7953333,2916.1,2915.7,0.64367422]
[1644886506173,1.0953333,2916.1,2915.7,0.64367422]
[1644886506421,1.6530633,2916.0,2915.7,0.64367422]
[1644886506718,2.8106836,2915.9,2915.7,0.64367422]
[1644886506921,2.0153503,2915.9,2915.8,0.64367422]
[1644886507117,1.1576803,2915.9,2915.6,0.00904143]
[1644886507319,0.85769,2915.8,2915.6,0.00904143]
[1644886507719,2.5731094,2915.8,2915.6,0.00904143]
[1644886507920,0.3,2915.9,2915.5,1.12001215]
[1644886508121,4.2379,2916.3,2915.9,0.26483004]
[1644886508318,2.31291,2916.3,2915.9,0.26483004]
[1644886508519,1.7150119,2916.2,2915.9,0.26483004]
[1644886508721,2.5724398,2916.2,2915.9,0.26483004]
[1644886508918,2.8724398,2916.2,2915.9,0.26483004]
[1644886509518,3.7299698,2916.2,2915.9,0.26483004]
[1644886510265,2.8724398,2916.2,2915.9,0.26483004]
[1644886510469,0.87103816,2916.1,2915.9,0.26483004]
[1644886510968,0.87103816,2916.1,2915.9,0.263939]
[1644886510969,1.72859816,2916.1,2915.9,0.263939]
[1644886511370,0.85756,2916.1,2915.9,0.263939]
[1644886512466,3.7299698,2916.2,2915.9,0.263939]
[1644886512669,2.8724398,2916.2,2915.9,0.263939]
[1644886513923,4.4627985,2916.1,2915.9,0.263939]
[1644886514118,4.4627985,2916.1,2915.6,0.00904166]
[1644886514119,3.717,2916.0,2915.6,0.00904166]
[1644886514319,5.3647659,2916.0,2915.6,0.00904166]
[1644886514915,0.85777,2915.9,2915.6,0.00904166]
[1644886515117,2.89097119,2915.9,2915.3,0.00423906]
[1644886515316,2.89097119,2915.9,2915.6,0.00904132]
[1644886515523,0.857733,2915.8,2915.6,0.00904132]
[1644886515815,0.3,2915.7,2915.6,0.00904132]
[1644886516218,0.3,2915.7,2915.3,0.00423906]
[1644886516423,0.3,2915.7,2915.5,0.00904141]
[1644886516816,3.7310059,2915.9,2915.5,0.00904141]
[1644886517216,0.85769,2915.6,2915.5,0.00904141]
[1644886517416,0.85769,2915.6,2915.3,0.00423906]
[1644886517666,1.15769,2915.6,2915.3,0.00423906]
[1644886517871,2.0153751,2915.6,2915.3,0.00423906]
[1644886518969,2.0153751,2915.6,2915.3,0.01328083]
[1644886519566,2.8731151,2915.6,2915.3,0.01328083]
[1644886519770,3.7308294,2915.6,2915.3,0.00423906]
[1644886520168,1.15773,2915.5,2915.3,0.01328083]
[1644886520472,0.3,2915.5,2915.3,0.01328083]
[1644886520870,1.1577213,2915.5,2915.3,0.01328083]
[1644886521073,0.8577213,2915.5,2915.3,0.00423906]
[1644886521272,0.8577213,2915.5,2915.3,0.6654525]
[1644886521915,0.8577213,2915.5,2915.3,0.01328093]
[1644886522316,0.8577213,2915.5,2915.3,0.00423906]
[1644886522515,0.8577213,2915.5,2915.3,0.00929894]
[1644886522716,1.1577213,2915.5,2915.3,0.00929894]
[1644886523521,1.1577213,2915.5,2915.3,0.00423906]
[1644886523721,1.1577213,2915.5,2915.3,0.00929894]
[1644886524722,1.1577213,2915.5,2915.3,0.00423906]
[1644886524922,1.1577213,2915.5,2915.3,0.01354623]
[1644886526067,1.1577213,2915.5,2915.3,0.87110623]
[1644886526964,1.1577213,2915.5,2915.4,0.63810281]
[1644886527166,0.3,2915.5,2915.4,0.63810281]
[1644886528069,1.32070214,2915.6,2915.4,0.63810281]
[1644886528922,2.17824334,2915.6,2915.4,0.63810281]
[1644886529120,0.3,2915.5,2915.4,0.63810281]
[1644886532974,1.15771,2915.5,2915.4,0.63810281]
[1644886533372,2.0154528,2915.5,2915.4,0.63810281]
[1644886533772,1.15771,2915.5,2915.4,0.63810281]
[1644886536439,0.3,2915.5,2915.4,0.63810281]
[1644886539941,1.15771,2915.5,2915.4,0.63810281]
[1644886540581,0.3,2915.5,2915.4,0.63810281]
[1644886542387,0.8575412,2915.6,2915.4,0.63810281]
[1644886542589,1.1355,2916.2,2915.5,1.98557281]
[1644886542783,0.82654915,2916.1,2915.6,0.63810281]
[1644886542980,0.25482593,2916.6,2915.7,0.63810281]
[1644886542981,0.01388925,2916.6,2915.7,0.63810281]
[1644886543180,0.8265817,2916.5,2915.8,0.63810281]
[1644886543479,0.8265817,2916.5,2915.9,1.69296775]
[1644886543682,0.8265817,2916.5,2916.0,0.63810281]
[1644886543683,0.8573595,2916.1,2916.0,0.63810281]
[1644886543923,0.8265817,2916.1,2916.0,0.63810281]
[1644886544121,0.8265817,2916.5,2916.0,0.63810281]
[1644886544323,0.8265817,2916.5,2916.1,0.63810281]
[1644886544524,0.8265817,2916.5,2916.2,0.63810281]
[1644886544829,0.8265817,2916.5,2916.3,0.63810281]
[1644886545029,1.7148184,2916.4,2916.0,0.85742]
[1644886545225,0.8265817,2916.3,2916.1,0.60947861]
[1644886545425,1.6839988,2916.3,2916.1,0.60947861]
[1644886545724,1.1265817,2916.2,2916.1,0.60947861]
[1644886546730,1.9839988,2916.2,2916.1,0.60947861]
[1644886547794,1.9839988,2916.2,2916.0,0.60947861]
[1644886547994,1.9839988,2916.2,2915.9,1.71320831]
[1644886547995,1.1574171,2916.2,2916.1,0.60947861]
[1644886548193,1.1574171,2916.2,2916.0,0.60947861]
[1644886548194,1.98501024,2916.2,2916.0,0.60947861]
[1644886548494,1.12759314,2916.1,2916.0,0.60947861]
[1644886548700,0.82759314,2916.1,2916.0,0.60947861]
[1644886550496,0.82759314,2916.1,2916.0,0.60789998]
[1644886550897,0.85746,2916.3,2915.8,1.04622441]
[1644886551099,0.85749,2916.2,2915.6,1.0023444]
[1644886551296,0.85749,2916.2,2915.6,0.5123444]
[1644886551538,0.85749,2916.2,2915.6,0.52092246]
[1644886551932,1.71503,2916.2,2915.6,0.52092246]
[1644886552138,0.85752,2916.1,2915.6,0.52092246]
[1644886552336,1.85453748,2916.1,2915.6,0.5123444]
[1644886552534,1.85453748,2916.1,2915.6,0.52092228]
[1644886553135,0.99701748,2916.1,2915.6,0.52092228]
[1644886553533,0.99701748,2916.1,2915.6,0.5123444]
[1644886553734,0.85751,2916.2,2915.6,0.5209155]
[1644886553934,2.87431,2916.5,2915.6,0.5209155]
[1644886554734,2.87431,2916.5,2915.6,0.5123444]
[1644886554935,0.85749,2916.3,2915.6,1.37841574]
[1644886555573,0.85749,2916.3,2915.9,0.90990189]
[1644886557575,2.01675,2916.5,2915.9,0.90990189]
[1644886557774,0.00482593,2916.6,2915.9,0.90990189]
[1644886558179,0.00482593,2916.7,2915.9,1.76732189]
[1644886558678,0.86220593,2916.7,2916.0,0.85742]
[1644886558922,0.86220593,2916.7,2915.9,0.90990189]
[1644886559321,1.13757452,2916.5,2915.9,0.90990189]
[1644886559520,1.14240045,2916.5,2915.9,0.90990189]
[1644886559720,1.99982045,2916.5,2915.9,1.76730189]
[1644886559921,1.14240045,2916.5,2916.0,0.8574]
[1644886560523,1.14240045,2916.5,2916.0,1.71477]
[1644886561219,0.00482593,2916.5,2916.0,0.8574]
[1644886561422,0.00931276,2916.6,2916.0,0.8574]
[1644886561620,0.00931276,2916.6,2916.0,1.71477]
[1644886561818,0.00931276,2916.6,2916.1,0.85734]
[1644886562020,1.16218593,2916.7,2916.1,0.85734]
[1644886562220,0.00931283,2916.6,2916.1,0.85734]
[1644886562675,0.00931283,2916.6,2916.1,1.87153146]
[1644886562872,0.86670283,2916.6,2916.1,1.01419146]
[1644886563079,0.00482593,2916.5,2916.1,1.01419146]
[1644886563570,0.0036576,2916.5,2916.1,1.01419146]
[1644886563972,0.0036576,2916.5,2916.1,1.87154146]
[1644886564172,0.0129705,2916.6,2916.1,1.87149416]
[1644886564372,0.0036576,2916.6,2916.1,1.87149416]
[1644886564575,0.00903564,2916.6,2916.2,0.85731]
[1644886565173,0.00903564,2916.6,2916.2,2.5718782]
[1644886565374,0.00903564,2916.6,2916.2,1.7146]
[1644886565579,0.0036576,2917.0,2916.3,0.85728]
[1644886566075,0.00903578,2916.6,2916.3,0.85728]
[1644886566275,0.00903578,2916.6,2916.4,0.85726]
[1644886566523,0.89171883,2917.3,2916.4,7.07152]
[1644886566719,0.86098343,2917.5,2916.6,0.00766701]
[1644886566720,0.64171883,2917.5,2916.6,0.00766701]
[1644886566919,3.1718,2917.7,2916.6,3.99766701]
[1644886566920,0.64171883,2917.6,2916.6,3.99766701]
[1644886567118,1.1764,2917.8,2916.6,3.99766701]
[1644886567319,0.64171883,2918.0,2916.7,20.97]
[1644886567621,0.64171883,2918.0,2917.8,0.86034392]
[1644886568219,5.11487514,2918.6,2917.8,0.86034392]
[1644886568220,0.64171883,2918.1,2917.8,0.86034392]
[1644886569418,0.64571777,2918.1,2917.8,0.86034392]
[1644886570019,0.00399894,2918.1,2917.8,0.86034392]
[1644886570273,0.64171883,2918.2,2917.8,0.86034392]
[1644886570675,0.00966016,2918.1,2917.5,3.42138671]
[1644886570878,0.79783952,2918.0,2917.5,3.42138671]
[1644886571973,0.80750007,2917.9,2917.6,1.03897215]
[1644886572274,0.79783952,2917.8,2917.6,1.03897215]
[1644886572676,0.79783952,2917.8,2917.6,3.60961215]
[1644886572875,0.64171883,2918.4,2917.7,3.25028473]
[1644886573075,0.00966065,2917.8,2917.7,3.25028473]
[1644886573274,0.00966065,2917.8,2917.7,3.39077181]
[1644886573478,0.80757929,2917.8,2917.7,3.39077181]
[1644886573675,0.00966065,2917.8,2917.7,3.22179487]
[1644886573925,0.8569,2918.4,2917.6,1.03897215]
[1644886574123,0.79670142,2918.3,2917.7,3.24587736]
[1644886574327,0.00399941,2917.9,2917.7,3.24587736]
[1644886574527,0.00399941,2917.9,2917.8,1.49]
[1644886574729,0.00399941,2917.9,2917.8,2.12356368]
[1644886575026,0.00399941,2917.9,2917.8,2.98034368]
[1644886575224,1.57041398,2919.0,2917.8,3.20357]
[1644886575425,0.03866389,2918.4,2918.2,1.07473457]
[1644886575625,0.03866389,2918.4,2918.0,0.49]
[1644886575626,0.79693335,2918.3,2918.0,0.49]
[1644886576232,0.03866389,2918.4,2918.0,0.49]
[1644886576423,0.8568018,2918.9,2918.0,0.49]
[1644886576624,0.00966684,2918.3,2918.0,0.49]
[1644886576824,0.00966684,2918.3,2918.0,3.68770728]
[1644886577026,1.7119402,2918.9,2918.0,3.68770728]
[1644886577227,0.79551802,2918.8,2918.0,3.19770728]
[1644886577427,6.9912751,2919.2,2918.5,3.05]
[1644886577428,5.06261883,2919.2,2918.5,3.05]
[1644886577674,5.06261883,2919.2,2918.4,0.96287602]
[1644886577675,0.64171883,2919.5,2918.6,3.79981617]
[1644886577870,1.84061883,2919.7,2918.6,3.79981617]
[1644886578071,1.84061883,2919.7,2918.7,0.49]
[1644886578275,0.64171883,2919.7,2918.8,3.37333997]
[1644886578474,1.07251292,2919.6,2918.9,0.90938507]
[1644886578876,1.07251292,2919.6,2918.8,3.28546213]
[1644886579073,1.07251292,2919.6,2918.6,5.00778103]
[1644886579675,0.3,2919.8,2918.6,6.38021578]
[1644886579875,2.9165,2919.9,2918.8,0.85649]
[1644886580172,0.3,2919.9,2918.8,0.85649]
[1644886580374,5.22901883,2920.1,2918.6,6.64957578]
[1644886580573,1.00692826,2919.9,2919.2,0.9994602]
[1644886580774,0.85656,2919.8,2919.2,0.9994602]
[1644886580978,2.35485883,2920.1,2919.2,0.9994602]
[1644886581174,0.64171883,2920.1,2919.2,0.9994602]
[1644886581422,0.00968535,2919.6,2919.2,0.9994602]
[1644886581916,0.00968535,2919.6,2919.3,3.20427215]
[1644886582126,0.00968535,2919.6,2919.2,0.9994602]
[1644886582317,0.0387356,2920.1,2919.2,0.9994602]
[1644886582318,0.64171883,2920.1,2919.2,0.9994602]
[1644886582518,0.64652063,2920.1,2919.2,0.9994602]
[1644886582716,0.00968545,2919.6,2919.2,0.9994602]
[1644886583616,0.0048018,2920.1,2919.2,0.9994602]
[1644886583819,0.00968555,2919.5,2919.2,0.9994602]
[1644886584817,0.0048018,2920.2,2919.2,0.9994602]
[1644886584818,0.85648,2920.1,2919.2,0.9994602]
[1644886585020,0.00968565,2919.5,2919.2,0.9994602]
[1644886585271,0.00968565,2919.5,2919.0,1.1868]
[1644886585973,1.14586274,2920.0,2919.0,1.1868]
[1644886585974,2.30238274,2920.0,2919.0,1.1868]
[1644886586171,0.00950423,2919.4,2919.2,0.90733124]
[1644886586574,0.00950423,2919.4,2919.0,1.1868]
[1644886586774,0.00950423,2919.4,2918.9,2.96273823]
[1644886587175,0.0048018,2919.6,2918.6,0.68699475]
[1644886587373,0.00950442,2919.3,2918.6,0.52540159]
[1644886587573,0.00950442,2919.3,2918.7,0.85652]
[1644886587773,0.00950442,2919.3,2918.9,1.00389219]
[1644886588475,0.4948018,2919.8,2918.9,1.00389219]